[Event "Early-Titled-Tuesday-Blitz-April-23-2024"]
[Site "Chess.com"]
[Date "2024.04.23"]
[Round "2"]
[White "Martial2008"]
[Black "MikeWizard"]
[Result "1-0"]
[WhiteElo "2684"]
[BlackElo "2187"]
[TimeControl "180+1"]
[EndTime "8:16:05 PDT"]
[Termination "Martial2008 won by resignation"]

1. d4 {[%clk 0:03:00.9]} 1... Nf6 {[%clk 0:02:56.8]} 2. Nf3 {[%clk 0:03:00.8]}
2... g6 {[%clk 0:02:53.9]} 3. Bg5 {[%clk 0:03:00.6]} 3... Ne4 {[%clk 0:02:50]}
4. Bh4 {[%clk 0:02:59.3]} 4... Bg7 {[%clk 0:02:47.5]} 5. Nbd2 {[%clk 0:02:59]}
5... Nxd2 {[%clk 0:02:46.2]} 6. Qxd2 {[%clk 0:02:59.9]} 6... O-O {[%clk
0:02:45.8]} 7. e4 {[%clk 0:02:59.5]} 7... d6 {[%clk 0:02:43]} 8. c3 {[%clk
0:02:57.7]} 8... c5 {[%clk 0:02:42.2]} 9. dxc5 {[%clk 0:02:56.6]} 9... dxc5
{[%clk 0:02:40.9]} 10. Qxd8 {[%clk 0:02:56.4]} 10... Rxd8 {[%clk 0:02:40.1]} 11.
Bxe7 {[%clk 0:02:57]} 11... Re8 {[%clk 0:02:40.1]} 12. Bxc5 {[%clk 0:02:57.7]}
12... Rxe4+ {[%clk 0:02:40.1]} 13. Be3 {[%clk 0:02:58.4]} 13... Bh6 {[%clk
0:02:36.9]} 14. Bd3 {[%clk 0:02:58.1]} 14... Re8 {[%clk 0:02:35.6]} 15. O-O-O
{[%clk 0:02:42.8]} 15... Bxe3+ {[%clk 0:02:34.2]} 16. fxe3 {[%clk 0:02:43.3]}
16... Nc6 {[%clk 0:02:23.4]} 17. Rhe1 {[%clk 0:02:42.3]} 17... Be6 {[%clk
0:02:18.9]} 18. Kb1 {[%clk 0:02:34.9]} 18... Bg4 {[%clk 0:02:14.4]} 19. Rd2
{[%clk 0:02:32.4]} 19... Ne5 {[%clk 0:02:11.4]} 20. Nxe5 {[%clk 0:02:32]} 20...
Rxe5 {[%clk 0:02:11.2]} 21. Kc2 {[%clk 0:02:29.3]} 21... Rae8 {[%clk 0:02:09.9]}
22. h3 {[%clk 0:02:27.5]} 22... Bc8 {[%clk 0:02:01.2]} 23. Bc4 {[%clk
0:02:22.8]} 23... Kg7 {[%clk 0:01:55.4]} 24. Rde2 {[%clk 0:02:20.2]} 24... Bf5+
{[%clk 0:01:53.3]} 25. Bd3 {[%clk 0:02:19.4]} 25... Bc8 {[%clk 0:01:50.3]} 26.
e4 {[%clk 0:02:16.4]} 26... b6 {[%clk 0:01:50.3]} 27. c4 {[%clk 0:02:09.3]}
27... Bb7 {[%clk 0:01:45]} 28. Kc3 {[%clk 0:02:09]} 28... f5 {[%clk 0:01:34.8]}
29. exf5 {[%clk 0:02:08.2]} 29... Rxe2 {[%clk 0:01:34.1]} 30. Rxe2 {[%clk
0:02:09.1]} 30... Rxe2 {[%clk 0:01:33.8]} 31. Bxe2 {[%clk 0:02:09.8]} 31... Bxg2
{[%clk 0:01:33.6]} 32. fxg6 {[%clk 0:02:10.1]} 32... hxg6 {[%clk 0:01:33.1]} 33.
h4 {[%clk 0:02:09.9]} 33... Kf6 {[%clk 0:01:31.4]} 34. Kd4 {[%clk 0:02:09.3]}
34... Bc6 {[%clk 0:01:22.6]} 35. Bd3 {[%clk 0:02:09.5]} 35... Be8 {[%clk
0:01:07.6]} 36. Kd5 {[%clk 0:02:07.5]} 36... Kg7 {[%clk 0:01:05.2]} 37. Kd6
{[%clk 0:02:05.5]} 37... Kh6 {[%clk 0:01:04.9]} 38. Be2 {[%clk 0:02:05.7]} 38...
g5 {[%clk 0:00:55.9]} 39. hxg5+ {[%clk 0:02:05.4]} 39... Kxg5 {[%clk 0:00:56.1]}
40. Kc7 {[%clk 0:02:05.6]} 40... Kf4 {[%clk 0:00:41.1]} 41. Kb7 {[%clk
0:02:04.9]} 41... Ke3 {[%clk 0:00:41.2]} 42. Bf1 {[%clk 0:02:05]} 42... a5
{[%clk 0:00:30.2]} 43. Kxb6 {[%clk 0:02:03.4]} 43... a4 {[%clk 0:00:30.4]} 44.
c5 {[%clk 0:02:03.8]} 44... Kd2 {[%clk 0:00:28.9]} 45. Bb5 {[%clk 0:02:01.6]}
45... Bxb5 {[%clk 0:00:22]} 46. Kxb5 {[%clk 0:02:02.5]} 46... Kc2 {[%clk
0:00:21.9]} 47. c6 {[%clk 0:02:01.6]} 47... Kxb2 {[%clk 0:00:21.9]} 48. Kxa4
{[%clk 0:02:01.8]} 1-0

[Event "Early-Titled-Tuesday-Blitz-April-23-2024"]
[Site "Chess.com"]
[Date "2024.04.23"]
[Round "2"]
[White "IwkooO"]
[Black "rionelG"]
[Result "1-0"]
[WhiteElo "2686"]
[BlackElo "2224"]
[TimeControl "180+1"]
[EndTime "8:16:07 PDT"]
[Termination "IwkooO won by resignation"]

1. e4 {[%clk 0:02:57.8]} 1... c5 {[%clk 0:02:43.7]} 2. Nf3 {[%clk 0:02:57.2]}
2... d6 {[%clk 0:02:43.9]} 3. Bb5+ {[%clk 0:02:56.9]} 3... Nd7 {[%clk
0:02:43.4]} 4. c3 {[%clk 0:02:52.9]} 4... Nf6 {[%clk 0:02:41.2]} 5. Qe2 {[%clk
0:02:52.9]} 5... a6 {[%clk 0:02:41]} 6. Ba4 {[%clk 0:02:53.3]} 6... b5 {[%clk
0:02:31.2]} 7. Bc2 {[%clk 0:02:53.6]} 7... Bb7 {[%clk 0:02:31.7]} 8. d4 {[%clk
0:02:52.4]} 8... cxd4 {[%clk 0:02:29.7]} 9. cxd4 {[%clk 0:02:53.3]} 9... Rc8
{[%clk 0:02:29.7]} 10. O-O {[%clk 0:02:50.6]} 10... Qc7 {[%clk 0:02:29.5]} 11.
Bd3 {[%clk 0:02:42.3]} 11... e6 {[%clk 0:02:09.5]} 12. Bf4 {[%clk 0:02:32.1]}
12... Be7 {[%clk 0:02:06.7]} 13. a3 {[%clk 0:02:30.1]} 13... O-O {[%clk
0:02:04.7]} 14. Nc3 {[%clk 0:02:30.7]} 14... h6 {[%clk 0:02:00.3]} 15. Rac1
{[%clk 0:02:30.5]} 15... Qb6 {[%clk 0:01:54.3]} 16. Be3 {[%clk 0:02:26.4]} 16...
Ng4 {[%clk 0:01:49.3]} 17. Bd2 {[%clk 0:02:22.5]} 17... Ngf6 {[%clk 0:01:25.6]}
18. h3 {[%clk 0:02:14.9]} 18... Rfe8 {[%clk 0:01:10.3]} 19. Rc2 {[%clk
0:02:12.8]} 19... Bc6 {[%clk 0:00:46.3]} 20. Rfc1 {[%clk 0:01:59]} 20... Bb7
{[%clk 0:00:46.1]} 21. Be3 {[%clk 0:01:58.1]} 21... Qa5 {[%clk 0:00:45.7]} 22.
Bd2 {[%clk 0:01:50.4]} 22... Qb6 {[%clk 0:00:45.3]} 23. Be3 {[%clk 0:01:36]}
23... Qa5 {[%clk 0:00:45]} 24. Qd2 {[%clk 0:01:36.7]} 24... b4 {[%clk
0:00:35.3]} 25. axb4 {[%clk 0:01:34.4]} 25... Qxb4 {[%clk 0:00:35]} 26. e5
{[%clk 0:01:24.9]} 26... Nd5 {[%clk 0:00:24.4]} 27. Nxd5 {[%clk 0:01:23.9]}
27... exd5 {[%clk 0:00:23.2]} 28. Qxb4 {[%clk 0:01:23.8]} 1-0

[Event "Early-Titled-Tuesday-Blitz-April-23-2024"]
[Site "Chess.com"]
[Date "2024.04.23"]
[Round "2"]
[White "kecalk"]
[Black "mertfelin"]
[Result "1-0"]
[WhiteElo "2523"]
[BlackElo "2258"]
[TimeControl "180+1"]
[EndTime "8:16:10 PDT"]
[Termination "kecalk won by resignation"]

1. e4 {[%clk 0:03:00.7]} 1... e5 {[%clk 0:03:00.2]} 2. f4 {[%clk 0:02:59.6]}
2... d5 {[%clk 0:03:00.4]} 3. exd5 {[%clk 0:02:59.3]} 3... exf4 {[%clk
0:03:01.2]} 4. Nf3 {[%clk 0:02:59.5]} 4... Nf6 {[%clk 0:03:01.7]} 5. Bc4 {[%clk
0:02:58.3]} 5... Nxd5 {[%clk 0:03:00.9]} 6. Bxd5 {[%clk 0:02:54.9]} 6... Qxd5
{[%clk 0:03:01.1]} 7. O-O {[%clk 0:02:55.5]} 7... Be7 {[%clk 0:02:54.3]} 8. Nc3
{[%clk 0:02:55.1]} 8... Qd6 {[%clk 0:02:50.1]} 9. d4 {[%clk 0:02:55.1]} 9... O-O
{[%clk 0:02:47.8]} 10. Ne5 {[%clk 0:02:39.3]} 10... Nc6 {[%clk 0:02:23]} 11.
Nxc6 {[%clk 0:02:28.1]} 11... Qxc6 {[%clk 0:02:23.1]} 12. Bxf4 {[%clk
0:02:27.9]} 12... Bf6 {[%clk 0:02:21.6]} 13. Kh1 {[%clk 0:02:05.5]} 13... b6
{[%clk 0:02:16.1]} 14. d5 {[%clk 0:01:45.1]} 14... Qd7 {[%clk 0:02:16.3]} 15.
Ne4 {[%clk 0:01:40]} 15... Bxb2 {[%clk 0:02:16.6]} 16. Rb1 {[%clk 0:01:40.1]}
16... Ba3 {[%clk 0:02:17.1]} 17. Rb3 {[%clk 0:01:33.2]} 17... Be7 {[%clk
0:02:14.3]} 18. Rg3 {[%clk 0:01:30.5]} 18... Kh8 {[%clk 0:02:12.1]} 19. Qh5
{[%clk 0:01:11.4]} 19... Qf5 {[%clk 0:01:55.2]} 20. Ng5 {[%clk 0:01:10.9]} 20...
Bd6 {[%clk 0:01:34.7]} 21. Rgf3 {[%clk 0:01:03.9]} 21... Bxf4 {[%clk 0:00:59]}
22. Rxf4 {[%clk 0:01:03.1]} 22... Qg6 {[%clk 0:00:58.8]} 23. Nxf7+ {[%clk
0:00:47.6]} 23... Rxf7 {[%clk 0:00:56.8]} 24. Rxf7 {[%clk 0:00:45.7]} 1-0

[Event "Early-Titled-Tuesday-Blitz-April-23-2024"]
[Site "Chess.com"]
[Date "2024.04.23"]
[Round "2"]
[White "rdarruda"]
[Black "erugee"]
[Result "1-0"]
[WhiteElo "2543"]
[BlackElo "2305"]
[TimeControl "180+1"]
[EndTime "8:16:14 PDT"]
[Termination "rdarruda won on time"]

1. Nf3 {[%clk 0:03:00.9]} 1... d5 {[%clk 0:02:37.1]} 2. b3 {[%clk 0:02:59.6]}
2... e6 {[%clk 0:02:36.6]} 3. Bb2 {[%clk 0:02:58.8]} 3... Nf6 {[%clk 0:02:35.9]}
4. e3 {[%clk 0:02:59.2]} 4... Be7 {[%clk 0:02:36.4]} 5. Be2 {[%clk 0:02:59.4]}
5... O-O {[%clk 0:02:36.8]} 6. O-O {[%clk 0:02:59.6]} 6... b6 {[%clk 0:02:37.3]}
7. c4 {[%clk 0:02:59.1]} 7... Bb7 {[%clk 0:02:37.5]} 8. d4 {[%clk 0:02:59.4]}
8... Nbd7 {[%clk 0:02:36.8]} 9. Nc3 {[%clk 0:02:59.4]} 9... Ne4 {[%clk
0:02:36.4]} 10. Qc2 {[%clk 0:02:57]} 10... Nxc3 {[%clk 0:02:36]} 11. Bxc3 {[%clk
0:02:55.9]} 11... h6 {[%clk 0:02:36.6]} 12. Bd3 {[%clk 0:02:54]} 12... Rc8
{[%clk 0:02:35.4]} 13. e4 {[%clk 0:02:52.7]} 13... c5 {[%clk 0:02:26.1]} 14.
exd5 {[%clk 0:02:52.2]} 14... exd5 {[%clk 0:02:10.4]} 15. dxc5 {[%clk 0:02:38]}
15... Nxc5 {[%clk 0:02:07.1]} 16. Bf5 {[%clk 0:02:37.4]} 16... dxc4 {[%clk
0:01:56]} 17. Bxc8 {[%clk 0:02:35.2]} 17... cxb3 {[%clk 0:01:56.2]} 18. axb3
{[%clk 0:02:34.5]} 18... Qxc8 {[%clk 0:01:52.8]} 19. Nd4 {[%clk 0:02:26.7]}
19... a5 {[%clk 0:01:38.9]} 20. Qf5 {[%clk 0:02:09.6]} 20... Qa8 {[%clk
0:01:35.7]} 21. Qg4 {[%clk 0:02:03.8]} 21... Ne4 {[%clk 0:01:33]} 22. Nf5 {[%clk
0:01:59.6]} 22... Bf6 {[%clk 0:01:02.1]} 23. Bxf6 {[%clk 0:01:55.6]} 23... g6
{[%clk 0:00:56.2]} 24. Bd4 {[%clk 0:01:33.9]} 24... Bc8 {[%clk 0:00:51]} 25.
Nxh6+ {[%clk 0:01:26.5]} 25... Kh7 {[%clk 0:00:48.6]} 26. Qh4 {[%clk 0:01:26]}
26... g5 {[%clk 0:00:42.7]} 27. Qh5 {[%clk 0:01:26]} 1-0

[Event "Early-Titled-Tuesday-Blitz-April-23-2024"]
[Site "Chess.com"]
[Date "2024.04.23"]
[Round "2"]
[White "PattyCastillo"]
[Black "Silvederione"]
[Result "0-1"]
[WhiteElo "2123"]
[BlackElo "2476"]
[TimeControl "180+1"]
[EndTime "8:16:15 PDT"]
[Termination "Silvederione won by resignation"]

1. d4 {[%clk 0:03:00]} 1... Nf6 {[%clk 0:03:00]} 2. Nf3 {[%clk 0:03:00]} 2... g6
{[%clk 0:03:00.4]} 3. Nc3 {[%clk 0:02:59.6]} 3... Bg7 {[%clk 0:03:01]} 4. e4
{[%clk 0:02:59.9]} 4... d6 {[%clk 0:03:01.7]} 5. Be3 {[%clk 0:02:59.8]} 5... O-O
{[%clk 0:03:02.3]} 6. Qd2 {[%clk 0:03:00]} 6... d5 {[%clk 0:03:01.9]} 7. exd5
{[%clk 0:02:56]} 7... Nxd5 {[%clk 0:03:01.8]} 8. Nxd5 {[%clk 0:02:55.5]} 8...
Qxd5 {[%clk 0:03:02.7]} 9. c4 {[%clk 0:02:53.8]} 9... Qd6 {[%clk 0:03:02.9]} 10.
h3 {[%clk 0:02:49.4]} 10... Nc6 {[%clk 0:03:02.7]} 11. Be2 {[%clk 0:02:42.8]}
11... Rd8 {[%clk 0:02:56.9]} 12. Rd1 {[%clk 0:02:40.3]} 12... Bf5 {[%clk
0:02:48.2]} 13. a3 {[%clk 0:02:34.7]} 13... e5 {[%clk 0:02:44.1]} 14. d5 {[%clk
0:02:26]} 14... Ne7 {[%clk 0:02:34.5]} 15. O-O {[%clk 0:02:09.2]} 15... c6
{[%clk 0:02:34.3]} 16. c5 {[%clk 0:02:03.6]} 16... Qxd5 {[%clk 0:02:29.1]} 17.
Qb4 {[%clk 0:01:55.8]} 17... Qe6 {[%clk 0:02:26.6]} 18. Qxb7 {[%clk 0:01:49.5]}
18... Rdb8 {[%clk 0:02:19.1]} 19. Qc7 {[%clk 0:01:39.1]} 19... Nd5 {[%clk
0:02:17]} 20. Qd6 {[%clk 0:01:33.4]} 20... Nxe3 {[%clk 0:02:16.5]} 21. fxe3
{[%clk 0:01:33.1]} 21... Rxb2 {[%clk 0:02:11.5]} 22. Rfe1 {[%clk 0:01:23.4]}
22... Bf8 {[%clk 0:02:07.4]} 23. Qxe6 {[%clk 0:01:21.7]} 23... Bxe6 {[%clk
0:02:08.3]} 24. Nxe5 {[%clk 0:01:20.3]} 24... Bxc5 {[%clk 0:02:07.3]} 25. Nxc6
{[%clk 0:01:11.7]} 25... Bxe3+ {[%clk 0:02:06.6]} 26. Kh1 {[%clk 0:01:12.4]}
26... Bf2 {[%clk 0:02:07.1]} 27. Bf3 {[%clk 0:01:01.5]} 27... Bxe1 {[%clk
0:01:39.7]} 28. Ne7+ {[%clk 0:01:01.3]} 28... Kf8 {[%clk 0:01:40.3]} 29. Bxa8
{[%clk 0:00:57.9]} 29... Bg3 {[%clk 0:01:08.7]} 30. Nd5 {[%clk 0:00:52.7]} 30...
Ra2 {[%clk 0:00:59.8]} 31. Nc7 {[%clk 0:00:50.7]} 31... Bxc7 {[%clk 0:00:58.2]}
0-1

[Event "Early-Titled-Tuesday-Blitz-April-23-2024"]
[Site "Chess.com"]
[Date "2024.04.23"]
[Round "2"]
[White "familijatop71"]
[Black "Herzog2012"]
[Result "0-1"]
[WhiteElo "2298"]
[BlackElo "2538"]
[TimeControl "180+1"]
[EndTime "8:16:18 PDT"]
[Termination "Herzog2012 won by resignation"]

1. e4 {[%clk 0:03:00.9]} 1... c5 {[%clk 0:02:59.1]} 2. c3 {[%clk 0:03:00.7]}
2... Nf6 {[%clk 0:02:57.6]} 3. e5 {[%clk 0:02:59.2]} 3... Nd5 {[%clk 0:02:54.7]}
4. Nf3 {[%clk 0:02:59.7]} 4... Nc6 {[%clk 0:02:48.3]} 5. d4 {[%clk 0:02:59.9]}
5... cxd4 {[%clk 0:02:47.6]} 6. Bc4 {[%clk 0:02:59.8]} 6... Nb6 {[%clk
0:02:46.5]} 7. Bb3 {[%clk 0:03:00.2]} 7... d6 {[%clk 0:02:47.1]} 8. exd6 {[%clk
0:03:00.2]} 8... Qxd6 {[%clk 0:02:46.9]} 9. O-O {[%clk 0:03:00.3]} 9... Be6
{[%clk 0:02:47.5]} 10. Na3 {[%clk 0:03:00.2]} 10... a6 {[%clk 0:02:42.5]} 11.
Bxe6 {[%clk 0:02:38.7]} 11... Qxe6 {[%clk 0:02:43.4]} 12. Nxd4 {[%clk
0:02:37.5]} 12... Nxd4 {[%clk 0:02:30.3]} 13. Qxd4 {[%clk 0:02:38.4]} 13... Rd8
{[%clk 0:02:02.8]} 14. Qh4 {[%clk 0:02:37.2]} 14... h5 {[%clk 0:01:07.9]} 15.
Be3 {[%clk 0:02:34.2]} 15... Nd5 {[%clk 0:01:05.8]} 16. Bd4 {[%clk 0:02:25.4]}
16... Qg4 {[%clk 0:00:48.7]} 17. Qg3 {[%clk 0:02:25.4]} 17... Nf4 {[%clk
0:00:34.1]} 18. Qxg4 {[%clk 0:02:07]} 18... hxg4 {[%clk 0:00:35]} 19. Rfe1
{[%clk 0:02:01.9]} 19... e6 {[%clk 0:00:30.3]} 20. Nc4 {[%clk 0:01:54.9]} 20...
f6 {[%clk 0:00:24.6]} 21. g3 {[%clk 0:01:45.9]} 21... Nh3+ {[%clk 0:00:18.4]}
22. Kg2 {[%clk 0:01:45.8]} 22... Ng5 {[%clk 0:00:18.6]} 23. Be3 {[%clk
0:01:16.7]} 23... Nf3 {[%clk 0:00:16.3]} 24. Rh1 {[%clk 0:01:17.3]} 24... Rh3
{[%clk 0:00:15.8]} 25. Rad1 {[%clk 0:01:16.7]} 25... Rxd1 {[%clk 0:00:14.8]} 0-1

[Event "Early-Titled-Tuesday-Blitz-April-23-2024"]
[Site "Chess.com"]
[Date "2024.04.23"]
[Round "2"]
[White "DonJuanEGenaro"]
[Black "Jakhongir-Vakhidov"]
[Result "0-1"]
[WhiteElo "2027"]
[BlackElo "2675"]
[TimeControl "180+1"]
[EndTime "8:16:22 PDT"]
[Termination "Jakhongir-Vakhidov won by checkmate"]

1. d4 {[%clk 0:02:56.2]} 1... Nf6 {[%clk 0:02:59.7]} 2. Nf3 {[%clk 0:02:54.6]}
2... g6 {[%clk 0:03:00]} 3. Bf4 {[%clk 0:02:53.8]} 3... Bg7 {[%clk 0:03:00.5]}
4. Nc3 {[%clk 0:02:51.3]} 4... d5 {[%clk 0:02:59.1]} 5. h3 {[%clk 0:02:50.8]}
5... O-O {[%clk 0:02:58.9]} 6. e3 {[%clk 0:02:47.8]} 6... c5 {[%clk 0:02:56.4]}
7. dxc5 {[%clk 0:02:46.4]} 7... a5 {[%clk 0:02:43.1]} 8. Be5 {[%clk 0:02:38.8]}
8... Nbd7 {[%clk 0:02:41.1]} 9. Bh2 {[%clk 0:02:17.4]} 9... Nxc5 {[%clk
0:02:40.2]} 10. Be2 {[%clk 0:02:07.6]} 10... Nfe4 {[%clk 0:02:30.7]} 11. Nxd5
{[%clk 0:01:44.6]} 11... Bxb2 {[%clk 0:02:27.4]} 12. Rb1 {[%clk 0:01:40.2]}
12... Nc3 {[%clk 0:02:07.8]} 13. Nxc3 {[%clk 0:01:34.4]} 13... Bxc3+ {[%clk
0:02:08.7]} 14. Kf1 {[%clk 0:01:33.8]} 14... Qxd1+ {[%clk 0:02:05.5]} 15. Rxd1
{[%clk 0:01:24.6]} 15... Be6 {[%clk 0:02:05]} 16. Ne5 {[%clk 0:00:58.5]} 16...
Bxa2 {[%clk 0:01:44.7]} 17. Nd7 {[%clk 0:00:57.3]} 17... Nxd7 {[%clk 0:01:44.9]}
18. Rxd7 {[%clk 0:00:55.5]} 18... a4 {[%clk 0:01:41.6]} 19. Rxb7 {[%clk
0:00:48.9]} 19... a3 {[%clk 0:01:38.1]} 20. f3 {[%clk 0:00:24.1]} 20... Bd5
{[%clk 0:01:36.4]} 21. Rc7 {[%clk 0:00:22.3]} 21... a2 {[%clk 0:01:36.3]} 22.
Kf2 {[%clk 0:00:21.4]} 22... Bf6 {[%clk 0:01:19.3]} 23. e4 {[%clk 0:00:16.9]}
23... Bd4+ {[%clk 0:01:19.6]} 24. Kg3 {[%clk 0:00:16]} 24... Be5+ {[%clk
0:01:20]} 25. Kg4 {[%clk 0:00:16]} 25... Be6+ {[%clk 0:01:19.8]} 26. Kg5 {[%clk
0:00:13]} 26... f6+ {[%clk 0:01:18.1]} 27. Kh6 {[%clk 0:00:11.8]} 27... Bxh2
{[%clk 0:01:18.3]} 28. Rxe7 {[%clk 0:00:09.2]} 28... Bf4# {[%clk 0:01:18]} 0-1

[Event "Early-Titled-Tuesday-Blitz-April-23-2024"]
[Site "Chess.com"]
[Date "2024.04.23"]
[Round "2"]
[White "Ural_bogatyr"]
[Black "AndresDelgado77"]
[Result "1-0"]
[WhiteElo "2561"]
[BlackElo "2337"]
[TimeControl "180+1"]
[EndTime "8:16:25 PDT"]
[Termination "Ural_bogatyr won on time"]

1. e4 {[%clk 0:03:00.9]} 1... e6 {[%clk 0:02:57.2]} 2. d4 {[%clk 0:03:00]} 2...
d5 {[%clk 0:02:52]} 3. Bd3 {[%clk 0:02:59.9]} 3... Nc6 {[%clk 0:02:43.4]} 4. c3
{[%clk 0:02:58.6]} 4... e5 {[%clk 0:02:40.1]} 5. Nf3 {[%clk 0:02:58.3]} 5...
exd4 {[%clk 0:02:30.5]} 6. O-O {[%clk 0:02:58.8]} 6... Bg4 {[%clk 0:02:07.6]} 7.
h3 {[%clk 0:02:54.8]} 7... Bxf3 {[%clk 0:02:06.7]} 8. Qxf3 {[%clk 0:02:54.3]}
8... Nf6 {[%clk 0:02:04.6]} 9. Bg5 {[%clk 0:02:49.6]} 9... Ne5 {[%clk
0:02:04.1]} 10. Qe2 {[%clk 0:02:38.4]} 10... Nxd3 {[%clk 0:02:02.7]} 11. exd5+
{[%clk 0:02:35.9]} 11... Be7 {[%clk 0:01:54]} 12. Bxf6 {[%clk 0:02:35.3]} 12...
Nf4 {[%clk 0:01:46.4]} 13. Qe4 {[%clk 0:02:25.4]} 13... Nxd5 {[%clk 0:01:43.1]}
14. Bxe7 {[%clk 0:02:11]} 14... Nxe7 {[%clk 0:01:39.2]} 15. Re1 {[%clk
0:02:11.3]} 15... Qd6 {[%clk 0:01:08.5]} 16. Na3 {[%clk 0:02:03.2]} 16... c6
{[%clk 0:00:34]} 17. Nc4 {[%clk 0:01:57]} 17... Qf6 {[%clk 0:00:34.1]} 18. cxd4
{[%clk 0:01:51]} 18... Rd8 {[%clk 0:00:33.4]} 19. Rad1 {[%clk 0:01:45]} 19...
Rd7 {[%clk 0:00:33]} 20. Ne5 {[%clk 0:01:41.9]} 20... Rc7 {[%clk 0:00:29.3]} 21.
d5 {[%clk 0:01:30]} 21... cxd5 {[%clk 0:00:24.3]} 22. Qa4+ {[%clk 0:01:29]}
22... Kf8 {[%clk 0:00:16.4]} 23. Nd7+ {[%clk 0:01:26.8]} 23... Rxd7 {[%clk
0:00:15.5]} 24. Qxd7 {[%clk 0:01:27.7]} 24... g6 {[%clk 0:00:13.6]} 25. Qd8+
{[%clk 0:01:26.9]} 25... Kg7 {[%clk 0:00:12.7]} 26. Qxe7 {[%clk 0:01:27.5]}
26... Qxe7 {[%clk 0:00:12.8]} 27. Rxe7 {[%clk 0:01:28.3]} 27... Rd8 {[%clk
0:00:13.7]} 28. Re5 {[%clk 0:01:27.8]} 1-0

[Event "Early-Titled-Tuesday-Blitz-April-23-2024"]
[Site "Chess.com"]
[Date "2024.04.23"]
[Round "2"]
[White "alpope"]
[Black "grzechu96"]
[Result "0-1"]
[WhiteElo "2509"]
[BlackElo "2787"]
[TimeControl "180+1"]
[EndTime "8:16:26 PDT"]
[Termination "grzechu96 won by resignation"]

1. e4 {[%clk 0:03:00.9]} 1... c5 {[%clk 0:02:59]} 2. Ne2 {[%clk 0:03:00.8]} 2...
Nf6 {[%clk 0:02:58.5]} 3. Nbc3 {[%clk 0:03:00]} 3... d5 {[%clk 0:02:58.9]} 4.
exd5 {[%clk 0:02:57.2]} 4... Nxd5 {[%clk 0:02:59.8]} 5. d4 {[%clk 0:02:44.8]}
5... Nxc3 {[%clk 0:02:51.7]} 6. bxc3 {[%clk 0:02:45.7]} 6... e6 {[%clk
0:02:45.7]} 7. Be3 {[%clk 0:02:37.4]} 7... Nc6 {[%clk 0:02:20.1]} 8. g3 {[%clk
0:02:33.6]} 8... Qd5 {[%clk 0:02:17.9]} 9. Rg1 {[%clk 0:02:26]} 9... cxd4 {[%clk
0:02:12.6]} 10. cxd4 {[%clk 0:02:14.1]} 10... Be7 {[%clk 0:02:10.8]} 11. Qd2
{[%clk 0:02:08.4]} 11... O-O {[%clk 0:02:05.9]} 12. Nf4 {[%clk 0:02:05.7]} 12...
Qd7 {[%clk 0:02:02.5]} 13. Bd3 {[%clk 0:02:00.7]} 13... Qc7 {[%clk 0:01:21.6]}
14. c3 {[%clk 0:01:52]} 14... Rd8 {[%clk 0:01:20]} 15. Qe2 {[%clk 0:01:15.6]}
15... e5 {[%clk 0:01:13.2]} 16. Qh5 {[%clk 0:01:16]} 16... g6 {[%clk 0:00:28.4]}
17. Nxg6 {[%clk 0:01:15.4]} 17... fxg6 {[%clk 0:00:29.3]} 18. Bxg6 {[%clk
0:01:13.5]} 18... Bf6 {[%clk 0:00:29.7]} 19. Bc2 {[%clk 0:00:56.2]} 19... exd4
{[%clk 0:00:28.8]} 20. Bb3+ {[%clk 0:00:55.9]} 20... Kh8 {[%clk 0:00:28.4]} 21.
cxd4 {[%clk 0:00:43.1]} 21... Qa5+ {[%clk 0:00:28.5]} 22. Kf1 {[%clk 0:00:41.8]}
22... Qxh5 {[%clk 0:00:28.4]} 0-1

[Event "Early-Titled-Tuesday-Blitz-April-23-2024"]
[Site "Chess.com"]
[Date "2024.04.23"]
[Round "2"]
[White "Mops_2004"]
[Black "patzer-reloaded"]
[Result "1-0"]
[WhiteElo "2889"]
[BlackElo "2440"]
[TimeControl "180+1"]
[EndTime "8:16:26 PDT"]
[Termination "Mops_2004 won by resignation"]

1. g3 {[%clk 0:03:00.9]} 1... d5 {[%clk 0:02:57.4]} 2. Nf3 {[%clk 0:03:00.3]}
2... g6 {[%clk 0:02:51.5]} 3. d4 {[%clk 0:02:59.5]} 3... Bg7 {[%clk 0:02:51.1]}
4. Bg2 {[%clk 0:02:59.5]} 4... c6 {[%clk 0:02:37.1]} 5. O-O {[%clk 0:02:58.5]}
5... Nf6 {[%clk 0:02:33.3]} 6. b3 {[%clk 0:02:58.6]} 6... O-O {[%clk 0:02:32.2]}
7. Bb2 {[%clk 0:02:58]} 7... a5 {[%clk 0:02:31.7]} 8. c4 {[%clk 0:02:56]} 8...
a4 {[%clk 0:02:29.6]} 9. e3 {[%clk 0:02:55.1]} 9... Ne4 {[%clk 0:02:28.9]} 10.
Nfd2 {[%clk 0:02:46.2]} 10... Bf5 {[%clk 0:02:06.6]} 11. Nxe4 {[%clk 0:02:15.8]}
11... Bxe4 {[%clk 0:02:07.5]} 12. Bxe4 {[%clk 0:02:15.7]} 12... dxe4 {[%clk
0:02:07.8]} 13. bxa4 {[%clk 0:02:15.9]} 13... f5 {[%clk 0:01:50.7]} 14. c5
{[%clk 0:02:04.8]} 14... Kh8 {[%clk 0:01:22.1]} 15. Qb3 {[%clk 0:02:03.9]} 15...
Ra7 {[%clk 0:01:13.9]} 16. Bc3 {[%clk 0:01:48.6]} 16... Nd7 {[%clk 0:01:10.7]}
17. Nd2 {[%clk 0:01:47.9]} 17... Nf6 {[%clk 0:01:09]} 18. Nc4 {[%clk 0:01:46.1]}
18... Nd5 {[%clk 0:01:04.1]} 19. a5 {[%clk 0:01:44.3]} 19... h5 {[%clk
0:00:57.1]} 20. f3 {[%clk 0:01:38.9]} 20... exf3 {[%clk 0:00:54.7]} 21. Rxf3
{[%clk 0:01:39.2]} 21... Nf6 {[%clk 0:00:37.2]} 22. Ne5 {[%clk 0:01:33.9]} 22...
Qd5 {[%clk 0:00:35.4]} 23. Nxg6+ {[%clk 0:01:32.9]} 23... Kh7 {[%clk 0:00:28.4]}
24. Nxf8+ {[%clk 0:01:32.9]} 24... Bxf8 {[%clk 0:00:27.8]} 25. Qxd5 {[%clk
0:01:32.9]} 25... Nxd5 {[%clk 0:00:26.3]} 26. Rxf5 {[%clk 0:01:25.7]} 26... Bh6
{[%clk 0:00:21.5]} 27. Bd2 {[%clk 0:01:25.8]} 27... Bxe3+ {[%clk 0:00:18.8]} 28.
Bxe3 {[%clk 0:01:26]} 28... Nxe3 {[%clk 0:00:19.4]} 29. Rf7+ {[%clk 0:01:26.3]}
29... Kg6 {[%clk 0:00:20.1]} 30. Rxe7 {[%clk 0:01:26.8]} 30... Nc2 {[%clk
0:00:19.9]} 31. Rd1 {[%clk 0:01:18.9]} 31... Rxa5 {[%clk 0:00:17.9]} 32. Rxb7
{[%clk 0:01:18.2]} 32... Rxa2 {[%clk 0:00:17.1]} 33. Rd2 {[%clk 0:01:18.6]}
33... Ra1+ {[%clk 0:00:16]} 34. Kf2 {[%clk 0:01:19.2]} 34... Nb4 {[%clk
0:00:15.1]} 35. Rxb4 {[%clk 0:01:18.8]} 1-0